fUST/lending_fUST_20250624
["ID","MTS","AMOUNT","RATE_DAILY","PERIOD"]
[367348736,1750758651147,-460.0,0.00020547,2]
[367348738,1750758651156,-572.81,0.00020547,2]
[367348740,1750758651166,-501.92,0.00020547,2]
[367348742,1750758651174,-460.0,0.00020547,2]
[367348744,1750758651183,-460.0,0.00020547,2]
[367348746,1750758651193,-248.17404541,0.00020547,2]
[367348748,1750758651202,-460.0,0.00020547,2]
[367348750,1750758651211,-460.0,0.00020547,2]
[367348752,1750758651220,-460.0,0.00020547,2]
[367348754,1750758651229,-193.21,0.00020547,2]
[367348756,1750758651239,-671.28,0.00020547,2]
[367348758,1750758651249,-460.0,0.00020547,2]
[367348760,1750758651258,-438.22,0.00020547,2]
[367348762,1750758651267,-460.0,0.00020547,2]
[367348764,1750758651276,-460.0,0.00020547,2]
[367348766,1750758651286,-460.0,0.00020547,2]
[367348768,1750758651295,-259.04243776,0.00020547,2]
[367348770,1750758651304,-460.0,0.00020547,2]
[367348772,1750758651313,-460.0,0.00020547,2]
[367348774,1750758651322,-1241.58,0.00020547,2]
[367348776,1750758651331,-460.0,0.00020547,2]
[367348778,1750758651340,-460.0,0.00020547,2]
[367348780,1750758651350,-460.0,0.00020547,2]
[367348782,1750758651359,-519.66,0.00020547,2]
[367348784,1750758651369,-460.0,0.00020547,2]
[367348787,1750758651381,-460.0,0.00020547,2]
[367348788,1750758651391,-460.0,0.00020547,2]
[367348790,1750758651400,-460.0,0.00020547,2]
[367348792,1750758651409,-460.0,0.00020547,2]
[367348794,1750758651418,-460.0,0.00020547,2]
[367348796,1750758651428,-460.0,0.00020547,2]
[367348798,1750758651436,-828.86,0.00020547,2]
[367348800,1750758651446,-460.0,0.00020547,2]
[367348802,1750758651455,-460.0,0.00020547,2]
[367348805,1750758651468,-460.0,0.00020547,2]
[367348807,1750758651478,-460.0,0.00020547,2]
[367348809,1750758651487,-460.0,0.00020547,2]
[367348811,1750758651497,-489.15168904,0.00020547,2]
[367348813,1750758651507,-1268.97,0.00020547,2]
[367348815,1750758651516,-471.4495204,0.00020547,2]
[367348817,1750758651525,-3741.09,0.00020547,2]
[367348819,1750758651535,-460.0,0.00020547,2]
[367348821,1750758651544,-282.16057541,0.00020547,2]
[367348823,1750758651554,-460.0,0.00020547,2]
[367348825,1750758651563,-460.0,0.00020547,2]
[367348827,1750758651574,-460.0,0.00020547,2]
[367348829,1750758651583,-460.0,0.00020547,2]
[367348831,1750758651593,-3206.19,0.00020547,2]
[367348833,1750758651602,-3172.49,0.00020547,2]
[367348835,1750758651612,-460.0,0.00020547,2]
[367348837,1750758651621,-2041.96,0.00020547,2]
[367348839,1750758651631,-460.0,0.00020547,2]
[367348841,1750758651640,-460.0,0.00020547,2]
[367348843,1750758651650,-826.01,0.00020547,2]
[367348845,1750758651660,-460.0,0.00020547,2]
[367348847,1750758651672,-1322.08,0.00020547,2]
[367348849,1750758651681,-486.03,0.00020547,2]
[367348851,1750758651692,-477.71060093,0.00020547,2]
[367348853,1750758651702,-460.0,0.00020547,2]
[367348855,1750758651713,-741.0,0.00020547,2]
[367348857,1750758651722,-592.32,0.00020547,14]
[367348859,1750758651733,-460.0,0.00020547,2]
[367348861,1750758651743,-460.0,0.00020547,2]
[367348863,1750758651753,-460.0,0.00020547,2]
[367348865,1750758651762,-1820.89,0.00020547,2]
[367348867,1750758651771,-460.0,0.00020547,2]
[367348869,1750758651781,-460.0,0.00020547,2]
[367348871,1750758651790,-460.0,0.00020547,2]
[367348873,1750758651799,-460.0,0.00020547,2]
[367348875,1750758651808,-460.0,0.00020547,2]
[367348877,1750758651818,-460.0,0.00020547,2]
[367348879,1750758651827,-460.0,0.00020547,2]
[367348881,1750758651836,-2393.21,0.00020547,2]
[367348883,1750758651845,-2176.1,0.00020547,2]
[367348885,1750758651856,-460.0,0.00020547,2]
[367348887,1750758651866,-554.63,0.00020547,2]
[367348889,1750758651874,-460.0,0.00020547,2]
[367348891,1750758651884,-1530.51,0.00020547,2]
[367348893,1750758651892,-460.0,0.00020547,2]
[367348895,1750758651902,-460.0,0.00020547,2]
[367348897,1750758651911,-460.0,0.00020547,2]
[367348899,1750758651921,-398.21807903,0.00020547,2]
[367348901,1750758651930,-460.0,0.00020547,2]
[367348903,1750758651940,-1204.89,0.00020547,2]
[367348905,1750758651950,-856.83,0.00020547,2]
[367348907,1750758651959,-460.0,0.00020547,2]
[367348909,1750758651969,-460.0,0.00020547,2]
[367348911,1750758651978,-654.15,0.00020547,2]
[367348913,1750758651987,-460.0,0.00020547,2]
[367348915,1750758651996,-460.0,0.00020547,2]
[367348917,1750758652005,-460.0,0.00020547,2]
[367348919,1750758652015,-753.1,0.00020547,2]
[367348921,1750758652024,-7038.97,0.00020547,2]
[367348923,1750758652034,-460.0,0.00020547,2]
[367348925,1750758652044,-460.0,0.00020547,2]
[367348927,1750758652053,-667.88,0.00020547,2]
[367348929,1750758652063,-729.97,0.00020547,2]
[367348931,1750758652072,-970.63,0.00020547,2]
[367348933,1750758652081,-877.19,0.00020547,2]
[367348935,1750758652091,-460.0,0.00020547,2]
[367348937,1750758652100,-460.0,0.00020547,2]
[367348939,1750758652109,-2048.8,0.00020547,2]
[367348941,1750758652119,-460.0,0.00020547,2]
[367348943,1750758652128,-460.0,0.00020547,2]
[367348945,1750758652138,-460.0,0.00020547,2]
[367348947,1750758652147,-567.1,0.00020547,2]
[367348949,1750758652157,-792.63,0.00020547,2]
[367348951,1750758652166,-654.88,0.00020547,2]
[367348953,1750758652175,-743.77,0.00020547,2]
[367348955,1750758652185,-460.0,0.00020547,2]
[367348957,1750758652195,-2427.85,0.00020547,2]
[367348959,1750758652204,-824.89,0.00020547,2]
[367348961,1750758652214,-725.2,0.00020547,2]
[367348963,1750758652223,-460.0,0.00020547,2]
[367348965,1750758652233,-460.0,0.00020547,2]
[367348967,1750758652242,-460.0,0.00020547,2]
[367348969,1750758652251,-460.0,0.00020547,2]
[367348971,1750758652262,-460.0,0.00020547,2]
[367348973,1750758652271,-460.0,0.00020547,2]
[367348975,1750758652281,-957.76,0.00020547,2]
[367348977,1750758652289,-2406.58,0.00020547,2]
[367348979,1750758652299,-460.0,0.00020547,2]
[367348981,1750758652308,-1455.07,0.00020547,2]
[367348983,1750758652318,-978.59,0.00020547,2]
[367348985,1750758652327,-460.0,0.00020547,2]
[367348987,1750758652337,-460.0,0.00020547,2]
[367348989,1750758652346,-460.0,0.00020547,2]
[367348991,1750758652355,-1036.42,0.00020547,2]
[367348993,1750758652364,-460.0,0.00020547,2]
[367348995,1750758652374,-461.17,0.00020547,2]
[367348997,1750758652382,-1860.68,0.00020547,2]
[367348999,1750758652391,-460.0,0.00020547,2]
[367349001,1750758652401,-460.0,0.00020547,2]
[367349003,1750758652410,-349.12,0.00020547,2]
[367349005,1750758652419,-460.0,0.00020547,2]
[367349007,1750758652428,-12556.00642039,0.00020577,2]
[367349009,1750758652437,-160.0,0.00020578,2]
[367349011,1750758652446,-425.14181427,0.00020578,2]
[367349013,1750758652455,-846.68469334,0.00020578,2]
[367349015,1750758652465,-160.0,0.00020578,2]
[367349017,1750758652474,-213.66798275,0.00020578,2]
[367349019,1750758652483,-230.20892031,0.00020578,2]
[367349021,1750758652493,-160.0,0.00020578,2]
[367349023,1750758652502,-160.0,0.00020578,2]
[367349025,1750758652510,-160.0,0.00020578,2]
[367349026,1750758652519,-160.0,0.00020578,2]
[367349028,1750758652529,-160.0,0.00020578,2]
[367349030,1750758652538,-836.80226758,0.00020578,2]
[367349032,1750758652547,-168.0,0.0002059,2]
[367349034,1750758652556,-151.0,0.000206,4]
[367349036,1750758652565,-151.0,0.000206,4]
[367349038,1750758652574,-74131.49,0.000206,2]
[367349040,1750758652584,-6075.23,0.000206,2]
[367349042,1750758652593,-4460.21824594,0.00020613,2]
[367349053,1750758653043,418.383684,0.00013699,2]
[367349120,1750758653691,-500.0,0.00019178,2]
[367349122,1750758653700,-151.0,0.00019178,2]
[367349124,1750758653711,-460.0,0.00019178,2]
[367349126,1750758653722,-460.0,0.00019178,2]
[367349128,1750758653732,-460.0,0.00019178,2]
[367349130,1750758653742,-460.0,0.00019178,2]
[367349132,1750758653751,-500.0,0.00019178,2]
[367349134,1750758653760,-502.51241642,0.00019205,2]
[367349136,1750758653770,-418.383684,0.00020187,2]
[367349138,1750758653779,-2140.89400528,0.00020613,2]
[367349140,1750758653790,-8954.97748854,0.00020613,2]
[367349142,1750758653799,-1596.02251146,0.00020624,3]
[367349145,1750758653810,-705.4856773,0.00020624,3]
[367349147,1750758653819,-151.0,0.000207,3]
[367349149,1750758653829,-1875.35,0.0002071,20]
[367349151,1750758653838,-4442.22736952,0.00020799,2]
[367351105,1750758771079,190.66252561,0.000189,2]
[367351107,1750758833302,150.0,0.000189,2]
[367351108,1750758898965,1842.020427,0.00024,30]
[367351109,1750758925948,288.13556814,0.00019053,2]
[367351110,1750759073081,150.0,0.000189,2]
[367351111,1750759206211,252.11862214,0.00019052,2]
[367351112,1750759275615,199.54382728,0.00018576,2]
[367351113,1750759312380,2207.06164367,0.00018175,2]
[367351114,1750759312402,10000.0,0.00018175,2]
[367351115,1750759312425,10000.0,0.00018175,2]
[367351116,1750759312448,2692.93835633,0.00018175,2]
[367351118,1750759438873,4558.06,0.000191,2]
[367351119,1750759491581,220.60379439,0.0001905,2]
[367351120,1750759492592,1780.619746,0.00024,30]
[367351121,1750759548890,219.88884537,0.00019048,2]
[367351122,1750759549277,219.88884537,0.0001905,2]
[367351123,1750759552325,-207.23850403,0.00019147,2]
[367351124,1750759579347,221.16633176,0.00018575,2]
[367351130,1750759659560,376.545315,0.00013699,2]
[367351132,1750759771813,193.0283201,0.00019068,2]
[367351170,1750759837736,-1200.0,0.00019146,2]
[367351172,1750759837746,-300.0,0.00019147,2]
[367351174,1750759837755,-507.68,0.00019168,3]
[367351176,1750759837764,-1418.5,0.00019168,3]
[367351179,1750759837774,-709.25,0.00019168,3]
[367351181,1750759837783,-354.62,0.00019168,3]
[367351182,1750759837792,-177.31,0.00019168,3]
[367351184,1750759837801,-531.98,0.00019168,3]
[367351186,1750759837811,-169.56,0.00019168,3]
[367351188,1750759837820,-169.56,0.00019168,3]
[367351190,1750759837829,-438.51,0.00019168,3]
[367351192,1750759837838,-219.25,0.00019168,3]
[367351194,1750759837847,-657.8,0.00019168,3]
[367351196,1750759837856,-500.0,0.00019169,2]
[367351198,1750759837865,-500.0,0.00019169,2]
[367351200,1750759837874,-500.0,0.00019169,2]
[367351202,1750759837883,-391.07711951,0.00019169,2]
[367351204,1750759837893,-201.69907407,0.00019169,2]
[367351206,1750759837902,-500.0,0.00019169,2]
[367351208,1750759837911,-156.67340006,0.00019169,2]
[367351210,1750759837920,-498.55519046,0.00019169,2]
[367351212,1750759837930,-500.0,0.00019169,2]
[367351214,1750759837939,-329.78854392,0.00019169,2]
[367351216,1750759837948,-500.0,0.00019169,2]
[367351218,1750759837957,-500.0,0.00019169,2]
[367351220,1750759837966,-185.16,0.00019177,2]
[367351222,1750759837976,-500.0,0.00019177,2]
[367351224,1750759837986,-439.29443287,0.00019177,2]
[367351466,1750759843017,-60.70556713,0.00019177,2]
[367351467,1750759843026,-500.0,0.00019177,2]
[367351468,1750759843035,-500.0,0.00019177,2]
[367351469,1750759843044,-650.0,0.00019177,2]
[367351470,1750759843052,-500.0,0.00019177,2]
[367351471,1750759843062,-500.0,0.00019177,2]
[367351472,1750759843071,-500.0,0.00019177,2]
[367351473,1750759843080,-500.0,0.00019177,2]
[367351474,1750759843088,-500.0,0.00019177,2]
[367351475,1750759843097,-500.0,0.00019177,2]
[367351476,1750759843106,-500.0,0.00019177,2]
[367351477,1750759843115,-460.0,0.00019178,2]
[367351479,1750759843125,-460.0,0.00019178,2]
[367351480,1750759843134,-460.0,0.00019178,2]
[367351481,1750759843145,-460.0,0.00019178,2]
[367351482,1750759843154,-425.82169641,0.00019178,2]
[367351484,1750759843164,-460.0,0.00019178,2]
[367351486,1750759843174,-438.22,0.00019178,2]
[367351488,1750759843183,-460.0,0.00019178,2]
[367351490,1750759843194,-460.0,0.00019178,2]
[367351491,1750759843203,-460.0,0.00019178,2]
[367351492,1750759843213,-460.0,0.00019178,2]
[367351493,1750759843223,-460.0,0.00019178,2]
[367351494,1750759843233,-460.0,0.00019178,2]
[367351495,1750759843244,-460.0,0.00019178,2]
[367351496,1750759843256,-460.0,0.00019178,2]
[367351497,1750759843266,-460.0,0.00019178,2]
[367351498,1750759843277,-460.0,0.00019178,2]
[367351499,1750759843287,-400.0,0.00019178,2]
[367351500,1750759843298,-460.0,0.00019178,2]
[367351501,1750759843308,-460.0,0.00019178,2]
[367351502,1750759843318,-460.0,0.00019178,2]
[367351503,1750759843328,-201.65175997,0.00019178,2]
[367351504,1750759843338,-460.0,0.00019178,2]
[367351505,1750759843348,-460.0,0.00019178,2]
[367351506,1750759843358,-460.0,0.00019178,2]
[367351507,1750759843368,-460.0,0.00019178,2]
[367351508,1750759843378,-460.0,0.00019178,2]
[367351509,1750759843389,-237.3612969,0.00019178,2]
[367351510,1750759843398,-440.0,0.00019178,2]
[367351511,1750759843407,-440.0,0.00019178,2]
[367351512,1750759843417,-185.01,0.00019178,2]
[367351513,1750759843428,-460.0,0.00019178,2]
[367351514,1750759843438,-460.0,0.00019178,2]
[367351515,1750759843447,-229.88661072,0.00019178,2]
[367351516,1750759843457,-318.36743157,0.00019178,2]
[367351517,1750759843467,-460.0,0.00019178,2]
[367351518,1750759843477,-460.0,0.00019178,2]
[367351519,1750759843487,-460.0,0.00019178,2]
[367351520,1750759843497,-460.0,0.00019178,2]
[367351521,1750759843507,-286.52,0.00019178,2]
[367351522,1750759843516,-460.0,0.00019178,2]
[367351523,1750759843526,-270.0,0.00019178,2]
[367351524,1750759843535,-500.0,0.00019178,2]
[367351525,1750759843545,-460.0,0.00019178,2]
[367351526,1750759843555,-460.0,0.00019178,2]
[367351527,1750759843564,-709.89,0.00019178,2]
[367351528,1750759843573,-460.0,0.00019178,2]
[367351529,1750759843582,-460.0,0.00019178,2]
[367351530,1750759843592,-460.0,0.00019178,2]
[367351531,1750759843601,-460.0,0.00019178,2]
[367351532,1750759843611,-460.0,0.00019178,2]
[367351533,1750759843621,-460.0,0.00019178,2]
[367351534,1750759843630,-460.0,0.00019178,2]
[367351535,1750759843639,-460.0,0.00019178,2]
[367351536,1750759843648,-460.0,0.00019178,2]
[367351537,1750759843657,-460.0,0.00019178,2]
[367351538,1750759843667,-460.0,0.00019178,2]
[367351539,1750759843677,-460.0,0.00019178,2]
[367351540,1750759843686,-460.0,0.00019178,2]
[367351541,1750759843695,-460.0,0.00019178,2]
[367351542,1750759843704,-460.0,0.00019178,2]
[367351543,1750759843713,-440.0,0.00019178,2]
[367351544,1750759843723,-460.0,0.00019178,2]
[367351545,1750759843732,-460.0,0.00019178,2]
[367351546,1750759843741,-460.0,0.00019178,2]
[367351547,1750759843750,-460.0,0.00019178,2]
[367351548,1750759843759,-439.91316033,0.00019178,2]
[367351549,1750759843769,-447.68596243,0.00019178,2]
[367351550,1750759843779,-440.0,0.00019178,2]
[367351551,1750759843788,-430.0,0.00019178,2]
[367351552,1750759843798,-460.0,0.00019178,2]
[367351553,1750759843807,-508.8626065,0.00019178,2]
[367351554,1750759843817,-460.0,0.00019178,2]
[367351555,1750759843826,-460.0,0.00019178,2]
[367351556,1750759843835,-460.0,0.00019178,2]
[367351557,1750759843844,-460.0,0.00019178,2]
[367351558,1750759843854,-410.0,0.00019178,2]
[367351559,1750759843864,-430.0,0.00019178,2]
[367351560,1750759843873,-430.0,0.00019178,2]
[367351561,1750759843883,-460.0,0.00019178,2]
[367351562,1750759843892,-430.0,0.00019178,2]
[367351563,1750759843902,-460.0,0.00019178,2]
[367351564,1750759843912,-460.0,0.00019178,2]
[367351565,1750759843921,-538.41,0.00019178,2]
[367351566,1750759843931,-461.24,0.00019178,2]
[367351567,1750759843940,-460.0,0.00019178,2]
[367351568,1750759843950,-460.0,0.00019178,2]
[367351569,1750759843960,-460.0,0.00019178,2]
[367351570,1750759843969,-400.0,0.00019178,2]
[367351571,1750759843979,-420.0,0.00019178,2]
[367351572,1750759843988,-460.0,0.00019178,2]
[367351573,1750759843998,-460.0,0.00019178,2]
[367351574,1750759844007,-460.0,0.00019178,2]
[367351575,1750759844016,-440.0,0.00019178,2]
[367351576,1750759844025,-460.0,0.00019178,2]
[367351577,1750759844034,-545.12,0.00019178,2]
[367351578,1750759844044,-442.7716634,0.00019178,2]
[367351579,1750759844053,-460.0,0.00019178,2]
[367351580,1750759844063,-460.0,0.00019178,2]
[367351581,1750759844072,-460.0,0.00019178,2]
[367351582,1750759844081,-500.0,0.00019178,2]
[367351583,1750759844090,-500.0,0.00019178,2]
[367351584,1750759844099,-434.00490752,0.00019178,2]
[367351585,1750759844110,-412.57978074,0.00019178,2]
[367351586,1750759844121,-440.0,0.00019178,2]
[367351587,1750759844132,-460.0,0.00019178,2]
[367351588,1750759844142,-460.0,0.00019178,2]
[367351589,1750759844153,-460.0,0.00019178,2]
[367351590,1750759844163,-362.82933591,0.00019178,2]
[367351591,1750759844172,-308.33129502,0.00019178,2]
[367351592,1750759844182,-454.35536951,0.00019178,2]
[367351593,1750759844191,-460.0,0.00019178,2]
[367351594,1750759844200,-460.0,0.00019178,2]
[367351595,1750759844209,-420.0,0.00019178,2]
[367351596,1750759844219,-460.0,0.00019178,2]
[367351597,1750759844228,-407.59848366,0.00019178,2]
[367351598,1750759844238,-460.0,0.00019178,2]
[367351599,1750759844247,-509.54459199,0.00019178,2]
[367351600,1750759844261,-525.14,0.00019178,2]
[367351601,1750759844270,-355.99532144,0.00019178,2]
[367351602,1750759844280,-460.0,0.00019178,2]
[367351603,1750759844289,-460.0,0.00019178,2]
[367351604,1750759844299,-460.0,0.00019178,2]
[367351605,1750759844308,-460.0,0.00019178,2]
[367351606,1750759844317,-460.0,0.00019178,2]
[367351607,1750759844327,-460.0,0.00019178,2]
[367351608,1750759844337,-420.45683382,0.00019178,2]
[367351609,1750759844347,-460.0,0.00019178,2]
[367351610,1750759844356,-460.0,0.00019178,2]
[367351611,1750759844365,-460.0,0.00019178,2]
[367351612,1750759844375,-636.67,0.00019178,2]
[367351613,1750759844384,-460.0,0.00019178,2]
[367351614,1750759844393,-460.0,0.00019178,2]
[367351615,1750759844402,-460.0,0.00019178,2]
[367351616,1750759844412,-460.0,0.00019178,2]
[367351617,1750759844421,-460.0,0.00019178,2]
[367351618,1750759844430,-460.0,0.00019178,2]
[367351619,1750759844440,-460.0,0.00019178,2]
[367351620,1750759844449,-460.0,0.00019178,2]
[367351621,1750759844459,-460.0,0.00019178,2]
[367351622,1750759844468,-601.06543738,0.00019178,2]
[367351623,1750759844477,-1855.01,0.00019178,2]
[367351624,1750759844486,-460.0,0.00019178,2]
[367351625,1750759844495,-2208.48,0.00019178,2]
[367351626,1750759844504,-460.0,0.00019178,2]
[367351627,1750759844513,-460.0,0.00019178,2]
[367351628,1750759844522,-460.0,0.00019178,2]
[367351629,1750759844532,-460.0,0.00019178,2]
[367351630,1750759844541,-460.0,0.00019178,2]
[367351631,1750759844551,-460.0,0.00019178,2]
[367351632,1750759844561,-460.0,0.00019178,2]
[367351633,1750759844570,-460.0,0.00019178,2]
[367351634,1750759844579,-1832.58,0.00019178,2]
[367351635,1750759844589,-460.0,0.00019178,2]
[367351636,1750759844598,-526.11870186,0.00019178,2]
[367351637,1750759844608,-460.0,0.00019178,2]
[367351638,1750759844618,-460.0,0.00019178,2]
[367351639,1750759844627,-449.29645423,0.00019178,2]
[367351640,1750759844637,-460.0,0.00019178,2]
[367351641,1750759844646,-430.0,0.00019178,2]
[367351642,1750759844656,-460.0,0.00019178,2]
[367351643,1750759844665,-733.2,0.00019178,2]
[367351644,1750759844674,-460.0,0.00019178,2]
[367351645,1750759844684,-500.0,0.00019178,2]
[367351646,1750759844694,-798.13,0.00019178,2]
[367351647,1750759844703,-460.0,0.00019178,2]
[367351648,1750759844713,-430.0,0.00019178,2]
[367351649,1750759844722,-314.95774738,0.00019178,2]
[367351650,1750759844732,-460.0,0.00019178,2]
[367351651,1750759844742,-460.0,0.00019178,2]
[367351652,1750759844752,-460.0,0.00019178,2]
[367351653,1750759844762,-460.0,0.00019178,2]
[367351654,1750759844771,-2811.19,0.00019178,2]
[367351655,1750759844781,-870.38,0.00019178,2]
[367351656,1750759844791,-524.2,0.00019178,2]
[367351657,1750759844800,-460.0,0.00019178,2]
[367351658,1750759844811,-1127.63,0.00019178,2]
[367351659,1750759844821,-645.18,0.00019178,2]
[367351660,1750759844831,-460.0,0.00019178,2]
[367351661,1750759844842,-460.0,0.00019178,2]
[367351662,1750759844851,-460.0,0.00019178,2]
[367351663,1750759844861,-460.0,0.00019178,2]
[367351664,1750759844871,-460.0,0.00019178,2]
[367351665,1750759844881,-460.0,0.00019178,2]
[367351666,1750759844891,-460.0,0.00019178,2]
[367351667,1750759844902,-460.0,0.00019178,2]
[367351668,1750759844911,-502.31,0.00019178,2]
[367351669,1750759844921,-460.0,0.00019178,2]
[367351670,1750759844931,-460.0,0.00019178,2]
[367351671,1750759844941,-460.0,0.00019178,2]
[367351672,1750759844950,-460.0,0.00019178,2]
[367351673,1750759844959,-460.0,0.00019178,2]
[367351674,1750759844969,-404.29426956,0.00019178,2]
[367351675,1750759844978,-481.36,0.00019178,2]
[367351676,1750759844988,-460.0,0.00019178,2]
[367351677,1750759844998,-460.0,0.00019178,2]
[367351678,1750759845008,-460.0,0.00019178,2]
[367351679,1750759845017,-460.0,0.00019178,2]
[367351680,1750759845028,-460.0,0.00019178,2]
[367351681,1750759845037,-461.41601423,0.00019178,2]
[367351682,1750759845047,-460.0,0.00019178,2]
[367351683,1750759845059,-707.51,0.00019178,2]
[367351684,1750759845068,-430.0,0.00019178,2]
[367351685,1750759845078,-1053.82,0.00019178,2]
[367351686,1750759845088,-460.0,0.00019178,2]
[367351687,1750759845098,-460.0,0.00019178,2]
[367351688,1750759845107,-460.0,0.00019178,2]
[367351689,1750759845117,-460.0,0.00019178,2]
[367351690,1750759845128,-460.0,0.00019178,2]
[367351691,1750759845138,-1779.47,0.00019178,2]
[367351692,1750759845147,-566.65,0.00019178,2]
[367351693,1750759845157,-431.00059719,0.00019178,2]
[367351694,1750759845166,-460.0,0.00019178,2]
[367351695,1750759845176,-430.0,0.00019178,2]
[367351696,1750759845185,-460.0,0.00019178,2]
[367351697,1750759845195,-460.0,0.00019178,2]
[367351698,1750759845204,-460.0,0.00019178,2]
[367351699,1750759845214,-1505.43,0.00019178,2]
[367351700,1750759845224,-460.0,0.00019178,2]
[367351701,1750759845234,-460.0,0.00019178,2]
[367351702,1750759845243,-460.0,0.00019178,2]
[367351703,1750759845256,-460.0,0.00019178,2]
[367351704,1750759845266,-460.0,0.00019178,2]
[367351705,1750759845275,-460.0,0.00019178,2]
[367351706,1750759845285,-433.50264543,0.00019178,2]
[367351707,1750759845297,-460.0,0.00019178,2]
[367351708,1750759845306,-1212.55,0.00019178,2]
[367351710,1750759845316,-420.0,0.00019178,2]
[367351711,1750759845326,-460.0,0.00019178,2]
[367351712,1750759845336,-1057.25,0.00019178,2]
[367351713,1750759845346,-309.59053848,0.00019178,2]
[367351714,1750759845355,-511.13,0.00019178,2]
[367351715,1750759845365,-460.0,0.00019178,2]
[367351716,1750759845374,-460.0,0.00019178,2]
[367351717,1750759845384,-460.0,0.00019178,2]
[367351718,1750759845394,-460.0,0.00019178,2]
[367351719,1750759845404,-460.0,0.00019178,2]
[367351720,1750759845414,-460.0,0.00019178,2]
[367351721,1750759845423,-6095.8,0.00019178,2]
[367351722,1750759845433,-2726.16,0.00019178,2]
[367351723,1750759845442,-460.0,0.00019178,2]
[367351724,1750759845452,-637.73,0.00019178,2]
[367351725,1750759845461,-460.0,0.00019178,2]
[367351726,1750759845471,-595.31,0.00019178,2]
[367351727,1750759845480,-460.0,0.00019178,2]
[367351728,1750759845490,-2258.65,0.00019178,2]
[367351729,1750759845501,-466.12992739,0.00019178,2]
[367351730,1750759845510,-460.0,0.00019178,2]
[367351731,1750759845520,-440.0,0.00019178,2]
[367351732,1750759845530,-1578.91,0.00019178,2]
[367351733,1750759845539,-651.82,0.00019178,2]
[367351734,1750759845549,-430.0,0.00019178,2]
[367351735,1750759845558,-596.8,0.00019178,2]
[367351736,1750759845568,-575.73,0.00019178,2]
[367351737,1750759845578,-460.0,0.00019178,2]
[367351739,1750759845588,-1076.64,0.00019178,2]
[367351741,1750759845597,-29.21557296,0.00019178,2]
[367351746,1750759845636,-430.78442704,0.00019178,2]
[367351748,1750759845646,-460.0,0.00019178,2]
[367351750,1750759845656,-554.76080498,0.00019178,2]
[367351752,1750759845666,-460.0,0.00019178,2]
[367351754,1750759845675,-420.0,0.00019178,2]
[367351756,1750759845685,-440.0,0.00019178,2]
[367351758,1750759845694,-1134.99,0.00019178,2]
[367351760,1750759845703,-679.69,0.00019178,2]
[367351762,1750759845713,-460.0,0.00019178,2]
[367351764,1750759845722,-460.0,0.00019178,2]
[367351766,1750759845732,-352.83232537,0.00019178,2]
[367351769,1750759845742,-430.0,0.00019178,2]
[367351771,1750759845752,-348.70646529,0.00019178,2]